Cogmind - Beta 15 @@@ ROGUE MODE // 2025.07.01 @ 20:47:20 Player: StaticNoob Result: Destroyed by H-55 Commando with Assault Rifle Performance ------------- Evolutions (2) 1000 Regions Visited (7) 1400 Robots Destroyed (72) 360 Value Destroyed (2927) 2927 Prototype IDs (1) 20 Alien Tech Used (0) 0 Bonus (1624) 1624 TOTAL SCORE: 7331 Bonus ------- High Alert Combat Kills 224 Entered Garrisons 400 Used RIF Installer 1000 Cogmind --------- Core Integrity 0/550 Matter 163/300 Energy 6/100 System Corruption 1% Temperature Cool (0) Movement Walking (270) Ox2 Location -8/Garrison Parts ------- > --- POWER (1) -------- (None) > --- PROPULSION (3) --- VSS Leg > --- UTILITY (5) ------ Large Storage Unit ECM Suite Core Shielding Relay Coupler [NC] (28) > --- WEAPON (2) ------- Beam Rifle > --- INVENTORY (15) --- Relay Coupler [Swarmer] (27) Relay Coupler [Sentry] (24) Relay Coupler [Specialist] (22) Particle Gun Rocket Launcher Rocket Launcher Improved Datajack Peak State ------------ > --- POWER ------------ Improved Ion Engine > --- PROPULSION ------- Light Treads Improved Treads Improved Treads > --- UTILITY ---------- Improved Heat Sink Improved Heat Sink Improved Heat Sink Huge Storage Unit Reactive Plating > --- WEAPON ----------- Gauss Rifle Blade Saw > --- INVENTORY -------- Cooled Ion Engine Cooled Ion Engine VSS Leg VSS Leg VSS Leg VSS Leg Improved Flight Unit Improved Flight Unit Improved Heat Sink Large Storage Unit ECM Suite Medium Laser Beam Rifle Beam Rifle Particle Gun Improved Medium Laser Heavy Assault Rifle Heavy Assault Rifle Rocket Launcher Rocket Launcher Mini Grenade Launcher Improved Datajack Improved Datajack [Rating: 32] Favorites ----------- Power Improved Ion Engine Engine Improved Ion Engine Power Core Light Nuclear Core Propulsion Light Treads Treads Light Treads Leg VSS Leg Wheel Compact Wheel Utility Improved Heat Sink Device Improved Heat Sink Storage Huge Storage Unit Hackware Relay Coupler [NC] Protection Light Armor Plating Weapon Beam Rifle Energy Gun Beam Rifle Energy Cannon Beam Cannon Ballistic Gun Gauss Rifle Ballistic Cannon Assault Cannon Launcher Rocket Launcher Slashing Weapon Blade Saw Special Melee Weapon Improved Datajack Build | -11 -10 -10 -9 -8 -8 -8 -8 ------- Run | Yrd Mat Min Mat Mat Gar Mat Gar Slots Evolved 4 | . . . 2 2 . . . Power . | . . . . . . . . Propulsion 1 | . . . 1 . . . . Utility 3 | . . . 1 2 . . . Weapon . | . . . . . . . . Parts Attached 67 | 9 8 . 18 2 22 . 8 Power 7 | 2 1 . 1 . 2 . 1 Engine 5 | 2 . . 1 . 1 . 1 Core 2 | . 1 . . . 1 . . Reactor . | . . . . . . . . Propulsion 20 | 2 3 . 8 1 5 . 1 Treads 11 | 1 2 . 3 1 4 . . Leg 5 | . . . 3 . 1 . 1 Wheel 4 | 1 1 . 2 . . . . Hover . | . . . . . . . . Flight . | . . . . . . . . Utility 24 | 3 3 . 5 1 9 . 3 Device 11 | 2 . . 3 . 5 . 1 Storage 4 | 1 2 . . . 1 . . Processor . | . . . . . . . . Hackware 3 | . . . . . 1 . 2 Protection 6 | . 1 . 2 1 2 . . Artifact . | . . . . . . . . Weapon 16 | 2 1 . 4 . 6 . 3 Energy Gun 5 | 1 . . 2 . 2 . . Energy Cannon 1 | . 1 . . . . . . Ballistic Gun 4 | 1 . . 1 . 2 . . Ballistic Cannon 1 | . . . . . . . 1 Launcher 2 | . . . 1 . 1 . . Special Weapon . | . . . . . . . . Impact Weapon . | . . . . . . . . Slashing Weapon 2 | . . . . . 1 . 1 Piercing Weapon . | . . . . . . . . Special Melee Weapon 1 | . . . . . . . 1 Unidentified Prototypes . | . . . . . . . . Parts Lost 26 | . 3 . 7 . 5 . 11 Power 3 | . 1 . . . . . 2 Propulsion 10 | . 2 . 2 . 2 . 4 Utility 9 | . . . 4 . 3 . 2 Weapon 4 | . . . 1 . . . 3 Highest Loss Streak 11 | . 2 . 2 . 1 . 11 To Critical Strikes 1 | . . . . . 1 . . Average Backups 18 | 3 9 11 19 24 22 14 13 Power 1 | . . . 1 2 1 1 . Propulsion 5 | 1 3 4 7 9 6 2 1 Utility 3 | . 4 5 3 3 3 6 5 Weapon 6 | . 1 1 4 7 9 4 5 Tool/Special . | . . . . . . . . Unused Backups 14 | . . . 1 . 9 1 3 Power 1 | . . . . . 1 . . Propulsion 2 | . . . . . 2 . . Utility 4 | . . . . . 1 . 3 Weapon 5 | . . . . . 4 1 . Tool/Special 2 | . . . 1 . 1 . . Average Slot Usage (%) 98 | . 100 100 97 96 97 100 92 Engine 6 | . 8 . 3 9 7 . 3 Core 3 | . 5 14 7 . 1 9 4 Treads 16 | . 14 14 17 18 18 . . Leg 4 | . . . . . 6 27 25 Wheel 7 | . 14 14 14 9 2 . . Device 13 | . 13 14 9 9 16 9 8 Storage 10 | . 14 14 11 9 9 9 9 Protection 12 | . . . 11 23 16 18 15 Energy Gun 6 | . 3 . 7 9 6 9 4 Energy Cannon 3 | . 10 14 3 . . . . Ballistic Gun 11 | . 14 14 10 9 11 9 1 Peak Build Rating 32 | 7 10 10 20 24 32 29 30 Average Rating 20 | 5 8 10 15 22 28 29 25 On Entrance 16 | . 7 10 10 20 24 29 29 Naked Turns . | . . . . . . . . Heaviest Build 111 | 14 90 90 99 110 111 35 37 Greatest Support 66 | 20 20 16 26 16 66 36 37 Greatest Overweight (x) 9 | . 5 5 9 6 6 . 2 Average Overweight (x) 2 | . 3 5 4 6 2 . . Largest Inventory Capacity 25 | 8 25 25 25 25 25 15 15 Average Capacity 22 | 7 20 25 25 25 22 15 15 Most Carried 25 | 5 13 11 25 25 25 15 15 Average Carried 18 | 3 10 11 19 24 22 14 13 Final Capacity 25 | 8 25 25 25 25 15 15 15 Final Carried 25 | 5 11 11 25 25 15 15 7 Class Distribution -------------------- 62% | Scavenger-Mutant 29% | Mutant 8% | Bothacker-Mutant Dominant Class ---------------- Mutant | -10/Materials Mutant | -10/Mines Scavenger-Mutant | -9/Materials Scavenger-Mutant | -8/Materials Scavenger-Mutant | -8/Garrison Bothacker-Mutant | -8/Materials Bothacker-Mutant | -8/Garrison Resources | -11 -10 -10 -9 -8 -8 -8 -8 ----------- Run | Yrd Mat Min Mat Mat Gar Mat Gar Matter Collected 1825 | 293 210 . 368 . 830 . 124 Remotely 206 | 206 . . . . . . . Salvage Created 2410 | 112 643 . 577 . 934 . 144 Parts 146 | 6 35 . 42 . 54 . 9 Haulers Intercepted 3 | . 2 . 1 . . . . Recyclers Shooed . | . . . . . . . . Parts Field Recycled . | . . . . . . . . Retrieved Matter . | . . . . . . . . Parts Self-Destructed . | . . . . . . . . Prevented . | . . . . . . . . Kills | -11 -10 -10 -9 -8 -8 -8 -8 ------- Run | Yrd Mat Min Mat Mat Gar Mat Gar Combat Hostiles Destroyed 64 | . 12 . 15 . 31 . 6 Guns 35 | . 5 . 7 . 22 . 1 Cannons 10 | . 7 . 1 . . . 2 AOE 19 | . . . 7 . 9 . 3 Classes Destroyed 12 | 2 3 . 2 . 4 . 1 Tunneler 2 | 2 . . . . . . . Hauler 3 | . 2 . 1 . . . . Recycler 1 | 1 . . . . . . . Watcher 2 | . 1 . 1 . . . . Swarmer 20 | . . . 4 . 14 . 2 Cutter 2 | . . . . . 2 . . Grunt 29 | . 12 . 6 . 10 . 1 Brawler 1 | . . . . . 1 . . Duelist 4 | . . . . . 3 . 1 Sentry 5 | . . . 5 . . . . Hunter 1 | . . . . . 1 . . Programmer 2 | . . . . . . . 2 Best Kill Streak 7 | 2 4 . 7 . 6 . 6 Combat Bots Only 7 | . 3 . 7 . 6 . 6 Max Kills in Single Turn 5 | 1 1 . 5 . 3 . 1 Gunslinging 1 | . . . . . 1 . . Exploded 5 | . . . 5 . 3 . 1 Melee . | . . . . . . . . Uniques/NPCs Destroyed . | . . . . . . . . Combat | -11 -10 -10 -9 -8 -8 -8 -8 -------- Run | Yrd Mat Min Mat Mat Gar Mat Gar Hostile Shots Fired 381 | . 64 . 91 . 106 . 120 Missed 90 | . 11 . 18 . 23 . 38 Hits 291 | . 53 . 73 . 83 . 82 Melee 13 | . . . . . 6 . 7 Projectile 278 | . 53 . 73 . 77 . 75 Critical Strikes 10 | . . . 2 . 5 . 3 Actively Blocked 1 | . . . . . . . 1 Damage Taken 4060 | . 651 . 933 . 1111 . 1365 Core 866 | . 108 . 197 . 229 . 332 Absorbed by Shields . | . . . . . . . . Redirected to Shielding 74 | . . . . . 6 . 68 Ignored by Resistances 82 | . . . . . 82 . . Regen/Repaired (Parts) 211 | . . . 211 . . . . Core Remaining (%) 68 | 100 . 56 50 . . . . Volleys Fired 223 | 13 60 . 57 . 77 . 16 Largest 2 | 2 2 . 2 . 2 . 2 Hottest 116 | 70 80 . 116 . 84 . 65 Shots Fired 418 | 26 117 . 97 . 153 . 25 Gun 341 | 26 76 . 84 . 146 . 9 Cannon 63 | . 41 . 11 . . . 11 Launcher 14 | . . . 2 . 7 . 5 Special . | . . . . . . . . Kinetic 244 | 13 60 . 53 . 98 . 20 Thermal 160 | 13 57 . 42 . 48 . . Explosive 14 | . . . 2 . 7 . 5 Electromagnetic . | . . . . . . . . Robot Hit Streak 14 | 6 7 . 8 . 14 . 11 Robot Miss Streak 4 | 1 4 . 4 . 3 . 1 Penetration Max . | . . . . . . . . Secondary Targets 7 | . 1 . 1 . 5 . . Max Gunslinging Chain 1 | . 1 . 1 . 1 . . Shots Hit Robots 244 | 13 55 . 62 . 86 . 28 Core Hits 122 | 5 26 . 26 . 55 . 10 Critical Kills . | . . . . . . . . Critical Parts Destroyed . | . . . . . . . . Critical Strikes 4 | . . . 1 . 3 . . Burn 3 | . . . 1 . 2 . . Sever 1 | . . . . . 1 . . Melee Attacks 23 | . . . . . 12 . 11 Impact . | . . . . . . . . Slashing 16 | . . . . . 12 . 4 Piercing . | . . . . . . . . Sneak Attacks 1 | . . . . . . . 1 Combat Hostiles 1 | . . . . . . . 1 Follow-up Attacks . | . . . . . . . . Damage Inflicted 5007 | 125 678 . 1156 . 2180 . 868 Guns 2716 | 125 346 . 681 . 1377 . 187 Cannons 697 | . 332 . 104 . . . 261 Explosions 1366 | . . . 371 . 637 . 358 Melee 228 | . . . . . 166 . 62 Ramming . | . . . . . . . . Kinetic 2196 | 52 247 . 421 . 1028 . 448 Thermal 1217 | 73 431 . 364 . 349 . . Explosive 1366 | . . . 371 . 637 . 358 Electromagnetic . | . . . . . . . . Impact . | . . . . . . . . Slashing 228 | . . . . . 166 . 62 Piercing . | . . . . . . . . Highest Corruption 1 | . . . . . 1 1 1 Average Corruption 1 | . . . . . 1 1 1 Corruption Purged . | . . . . . . . . Corruption Blocked . | . . . . . . . . Effects 19 | . . . . . 18 . 1 Message Errors 3 | . . . . . 3 . . Matter Fused 4 | . . . . . 4 . . Heat Flow Errors 2 | . . . . . 2 . . Data Loss (minor) 4 | . . . . . 4 . . Data Loss (major) 2 | . . . . . 1 . 1 Misfires 2 | . . . . . 2 . . Alerts 2 | . . . . . 2 . . Overload Shots . | . . . . . . . . Overflow Damage 61 | . . . . . 47 . 14 Projectiles 14 | . . . . . . . 14 Explosions 3 | . . . . . 3 . . Melee 44 | . . . . . 44 . . Knockbacks 2 | . . . . . . . 2 Impact . | . . . . . . . . Kinetic 2 | . . . . . . . 2 Secondary . | . . . . . . . . Self-Inflicted Damage 77 | . . . . . 41 . 36 Shots 2 | . . . . . 1 . 1 Rammed . | . . . . . . . . Targets Rammed . | . . . . . . . . Kicked . | . . . . . . . . Crushed . | . . . . . . . . Highest Temperature 423 | 110 423 . 306 . 202 . . Average Temperature 104 | 45 126 . 98 . 43 . . Received Heat Transfer 1266 | . 363 . 381 . 432 . 90 Effects 4 | . 4 . . . . . . Shutdowns 1 | . 1 . . . . . . Energy Bleed 2 | . 2 . . . . . . Damage (minor) 1 | . 1 . . . . . . Siege Activations . | . . . . . . . . Martial Activations . | . . . . . . . . Shielding Activations . | . . . . . . . . Robots Disrupted . | . . . . . . . . Combat Hostiles . | . . . . . . . . Robots Corrupted . | . . . . . . . . Combat Hostiles . | . . . . . . . . Parts Fried . | . . . . . . . . Impact Corruptions . | . . . . . . . . Robots Melted . | . . . . . . . . Combat Hostiles . | . . . . . . . . Parts Melted 5 | . 1 . 2 . 2 . . Heat Transferred 3219 | 222 999 . 962 . 1036 . . Parts Sabotaged . | . . . . . . . . Parts Stolen . | . . . . . . . . Parts Stripped . | . . . . . . . . Power Chain Reactions . | . . . . . . . . Alert | -11 -10 -10 -9 -8 -8 -8 -8 ------- Run | Yrd Mat Min Mat Mat Gar Mat Gar Maximum Alert Level 5 | . . . . . 5 3 2 Low Security (%) 55 | 100 100 100 100 100 17 . . Level 1 3 | . . . . . 8 . . Level 2 13 | . . . . . 20 . 100 Level 3 17 | . . . . . 34 100 . Level 4 8 | . . . . . 17 . . Level 5 1 | . . . . . 3 . . High Security . | . . . . . . . . Max Security . | . . . . . . . . Peak Influence 1618 | 5 57 7 186 50 1618 789 600 Initial 788 | . . 7 . 50 15 788 499 Average 393 | . 20 2 61 36 709 783 536 Influence Increases 2642 | 15 354 . 444 4 1653 1 171 Destroy 0b10 Robot/C 1280 | . 240 . 300 . 620 . 120 Destroy 0b10 Robot/NC 45 | 15 15 . 10 . 5 . . Destroy Leader 210 | . 66 . 84 . 40 . 20 Allied During Kill 1 | . . . . . . . 1 Successful Hack 84 | . 18 . 19 4 42 1 . Disable Machine 45 | . . . 15 . 30 . . Anti-Garrison Action 800 | . . . . . 800 . . Destroy Structure 132 | . . . 16 . 86 . 30 Lose Combat Pursuer 45 | . 15 . . . 30 . . Influence Decreases 2142 | 15 335 19 325 99 59 850 440 Entered New Map 1190 | . . 12 . 69 9 830 270 Time Decay 633 | 15 269 7 292 30 . 20 . Lost Part 223 | . 30 . 33 . 50 . 110 Lost Ally 70 | . 10 . . . . . 60 Purge Threat 26 | . 26 . . . . . . Squads Dispatched 5 | . 3 1 1 . . . . Investigation 1 | . . . 1 . . . . Extermination . | . . . . . . . . Reinforcement 3 | . 3 . . . . . . Assault 1 | . . 1 . . . . . Garrison . | . . . . . . . . Intercept . | . . . . . . . . Searches Triggered . | . . . . . . . . Construction Impeded . | . . . . . . . . Haulers Reinforced . | . . . . . . . . Active Scanning Responses . | . . . . . . . . Cargo Convoy Interrupts . | . . . . . . . . Stealth | -11 -10 -10 -9 -8 -8 -8 -8 --------- Run | Yrd Mat Min Mat Mat Gar Mat Gar Distress Signals 2 | . 2 . . . . . . Communications Jammed . | . . . . . . . . Distress Signals . | . . . . . . . . Times Spotted 98 | . 22 4 22 . 33 2 15 Peak Tracking Total 9 | . 3 4 9 . 4 2 9 Tactical Retreats 3 | . 1 . . . 1 . 1 Traps | -11 -10 -10 -9 -8 -8 -8 -8 ------- Run | Yrd Mat Min Mat Mat Gar Mat Gar Traps Triggered 12 | . . . 1 . 11 . . Indirectly . | . . . . . . . . Trap Hack Attempts . | . . . . . . . . Triggered . | . . . . . . . . Disarmed . | . . . . . . . . Reprogrammed . | . . . . . . . . Reused . | . . . . . . . . Traps Extracted . | . . . . . . . . Installed . | . . . . . . . . Triggered . | . . . . . . . . Machines | -11 -10 -10 -9 -8 -8 -8 -8 ---------- Run | Yrd Mat Min Mat Mat Gar Mat Gar Machines Disabled 7 | . . . 1 . 6 . . Max in Single Turn 1 | . . . 1 . 1 . . Garrison Relay 4 | . . . . . 4 . . Machines Repaired . | . . . . . . . . Machines Dismantled . | . . . . . . . . Machines Sabotaged . | . . . . . . . . Overloaded Fab Kills . | . . . . . . . . Hacking | -11 -10 -10 -9 -8 -8 -8 -8 --------- Run | Yrd Mat Min Mat Mat Gar Mat Gar Machines Accessed 18 | . 6 . 5 1 4 2 . Terminals 12 | . 5 . 3 . 4 . . Fabricators . | . . . . . . . . Repair Stations 3 | . 1 . 2 . . . . Recycling Units . | . . . . . . . . Scanalyzers 1 | . . . . . . 1 . Garrison Access 2 | . . . . 1 . 1 . Total Hacks 49 | . 19 . 17 1 7 5 . Successful 28 | . 8 . 11 1 3 5 . Failed 21 | . 11 . 6 . 4 . . Catastrophic 5 | . 2 . 2 . 1 . . Database Lockouts . | . . . . . . . . Manual 21 | . 12 . 9 . . . . Terminals 32 | . 16 . 9 . 7 . . Fabricators . | . . . . . . . . Repair Stations 11 | . 3 . 8 . . . . Recycling Units . | . . . . . . . . Scanalyzers 4 | . . . . . . 4 . Garrison Access 2 | . . . . 1 . 1 . Terminal Hacks 9 | . 3 . 3 . 3 . . Robot Analysis 2 | . . . 2 . . . . Branch Access Points 1 | . . . 1 . . . . Emergency Access Points 1 | . . . . . 1 . . Unreport Threat 1 | . 1 . . . . . . Locate Traps 2 | . 2 . . . . . . Garrison Registry 1 | . . . . . 1 . . Patrol Navigation 1 | . . . . . 1 . . Fabricator Hacks . | . . . . . . . . Repair Station Hacks 7 | . 1 . 6 . . . . Scan Component 4 | . 1 . 3 . . . . Repair 3 | . . . 3 . . . . Recycling Unit Hacks . | . . . . . . . . Scanalyzer 4 | . . . . . . 4 . Insert Component 2 | . . . . . . 2 . Analyze 2 | . . . . . . 2 . Garrison Access Hacks 2 | . . . . 1 . 1 . Unlock Access 2 | . . . . 1 . 1 . Unauthorized Hacks 6 | . 4 . 2 . . . . Terminals 6 | . 4 . 2 . . . . Assimilate 2 | . 2 . . . . . . Botnet 4 | . 2 . 2 . . . . Fabricators . | . . . . . . . . Repair Stations . | . . . . . . . . Recycling Units . | . . . . . . . . Scanalyzers . | . . . . . . . . Garrison Access . | . . . . . . . . Data Cores Recovered . | . . . . . . . . Used . | . . . . . . . . Hacking Detections 17 | . 6 . 5 1 3 2 . Full Trace Events . | . . . . . . . . Feedback Events . | . . . . . . . . Feedback Blocked . | . . . . . . . . Robot Schematics Acquired . | . . . . . . . . Robots Built . | . . . . . . . . Authchips . | . . . . . . . . Time . | . . . . . . . . Total Robot Build Rating . | . . . . . . . . Part Schematics Acquired 1 | . . . . . . 1 . Parts Built . | . . . . . . . . Authchips . | . . . . . . . . Time . | . . . . . . . . Total Part Build Rating . | . . . . . . . . Parts Repaired 3 | . . . 3 . . . . Time 74 | . . . 74 . . . . Parts Recycled . | . . . . . . . . Recycled Matter . | . . . . . . . . Retrieved Matter . | . . . . . . . . Retrieved Components . | . . . . . . . . Parts Scanalyzed 1 | . . . . . . 1 . Part Schematics Acquired 1 | . . . . . . 1 . Parts Damaged . | . . . . . . . . Bothacking | -11 -10 -10 -9 -8 -8 -8 -8 ------------ Run | Yrd Mat Min Mat Mat Gar Mat Gar Used RIF Installer 2 | . . . . . 2 . . Watcher Feeds 1 | . . . . . 1 . . Robots Hacked 5 | . . . . . . . 5 Non-combat . | . . . . . . . . Combat 5 | . . . . . . . 5 Robot Hacks Applied 5 | . . . . . . . 5 disrupt_area 1 | . . . . . . . 1 go_dormant 1 | . . . . . . . 1 streamctrl_high 2 | . . . . . . . 2 formatsys_high 1 | . . . . . . . 1 Relay Couplers Released 13 | . . . . . 13 . . Machine Destruction 13 | . . . . . 13 . . Attached 3 | . . . . . 1 . 2 Fabnet Peak Effective % . | . . . . . . . . Robots Rewired . | . . . . . . . . Allies Hacked . | . . . . . . . . Hacks Repelled . | . . . . . . . . Allies | -11 -10 -10 -9 -8 -8 -8 -8 -------- Run | Yrd Mat Min Mat Mat Gar Mat Gar Total Allies 5 | . 1 1 . . . . 3 Largest Group 1 | . 1 1 . . . . 1 Highest-Rated Group 31 | . 10 31 . . . . 21 Highest-Rated Ally 31 | . 10 31 . . . . 21 Total Orders . | . . . . . . . . Ally Attacks 9 | . . 5 . . . . 4 Total Damage 168 | . . 104 . . . . 64 Kills . | . . . . . . . . Allies Corrupted . | . . . . . . . . Allies Melted . | . . . . . . . . Intel | -11 -10 -10 -9 -8 -8 -8 -8 ------- Run | Yrd Mat Min Mat Mat Gar Mat Gar Active Infowar (turns) 1837 | 13 956 53 671 . 77 . 67 Sensors 606 | . . . 606 . . . . Traps 77 | . . . . . 77 . . Seismic 1087 | 13 956 53 65 . . . . ECM 67 | . . . . . . . 67 Robot Analysis Total 2 | . . . 2 . . . . Derelict Logs Recovered . | . . . . . . . . Drone Launches . | . . . . . . . . Drone Recoveries . | . . . . . . . . Exploration | -11 -10 -10 -9 -8 -8 -8 -8 ------------- Run | Yrd Mat Min Mat Mat Gar Mat Gar Turns Passed 5320 | 137 1019 53 1192 71 2638 40 170 Spaces Moved 2461 | 56 489 31 535 33 1188 40 89 Core 5 | 5 . . . . . . . Treads 587 | 50 99 . . . 438 . . Legs 561 | . . . 2 . 430 40 89 Wheels 1308 | 1 390 31 533 33 320 . . Hover . | . . . . . . . . Flight . | . . . . . . . . Fastest Speed 50 | 50 115 175 135 190 90 90 90 Average Speed 170 | 149 165 175 162 190 184 90 96 Slowest Speed 720 | 160 240 175 720 190 240 90 270 Overloaded Moves . | . . . . . . . . Propulsion Burnouts . | . . . . . . . . Robots Hopped . | . . . . . . . . Potential Cave-ins . | . . . . . . . . Cave-ins Triggered . | . . . . . . . . Exploration Rate (%) 35 | 6 93 14 45 8 90 6 20 Regions Visited 7 Branch Regions 1 Pre-discovered Areas . | . . . . . . . . Known Exits Taken 2 | . . . . 1 . 1 . Unknown Exits Taken 4 | 1 1 1 1 . . . . Scrap Searched . | . . . . . . . . Spaces Dug . | . . . . . . . . Terrain Destroyed 91 | . . . 18 . 57 . 16 Melee . | . . . . . . . . Projectile 3 | . . . . . 3 . . AOE 88 | . . . 18 . 54 . 16 Terrain Rammed . | . . . . . . . . Walls Destroyed . | . . . . . . . . Machines Disabled . | . . . . . . . . Actions | -11 -10 -10 -9 -8 -8 -8 -8 --------- Run | Yrd Mat Min Mat Mat Gar Mat Gar Total 3149 | 82 591 30 762 41 1462 44 137 Wait 202 | . 23 . 111 . 64 . 4 Move 2456 | 55 488 30 534 33 1187 40 89 Hop . | . . . . . . . . Pick Up 49 | 4 6 . 22 3 12 2 . Fast Attach 32 | 8 3 . 8 1 12 . . Attach 31 | . 3 . 11 2 7 . 8 Detach 5 | . 1 . 2 . 2 . . Swap 42 | 1 4 . 9 . 19 . 9 Drop 48 | 1 3 . 8 2 32 2 . Fire 223 | 13 60 . 57 . 77 . 16 Melee 23 | . . . . . 12 . 11 Ram . | . . . . . . . . Kick . | . . . . . . . . Crush . | . . . . . . . . Escape Stasis 38 | . . . . . 38 . . Rewire . | . . . . . . . . Trap . | . . . . . . . . Miscellaneous . | . . . . . . . . Route ------- -11/Scrapyard -10/Materials (discovered 5 exits: *Mat x3 / [*Min x2]) -10/Mines -9/Materials (discovered 4 exits: *Mat x2 / *Min x2) -8/Materials -8/Garrison (discovered 4 exits: *Mat x4) -8/Materials -8/Garrison History --------- Turn | Location | Event 9 | -11/Scrapyard | Discovered new exit (range 15) 138 | -11/Scrapyard | Entered Materials 158 | -10/Materials | Discovered new exit (range 14) 223 | -10/Materials | Discovered new exit (range 15) 304 | -10/Materials | Build established: Mutant 442 | -10/Materials | Discovered new exit (range 16) 720 | -10/Materials | Discovered new exit (range 14) 1082 | -10/Materials | Discovered new exit (range 4) 1157 | -10/Materials | Entered Mines 1158 | -10/Mines | Met a Derelict testing a Signal Generator 1201 | -10/Mines | Discovered new exit (range 3) 1210 | -10/Mines | Entered Materials 1210 | -9/Materials | Evolved 2 slots: Propulsion x1, Utility x1 1644 | -9/Materials | Discovered new exit (range 12) 1682 | -9/Materials | Repaired Hvy. Assault Rifle 1868 | -9/Materials | Build established: Scavenger-Mutant 1895 | -9/Materials | Discovered new exit (range 16) 1908 | -9/Materials | Destroyed 7 combat bots 2018 | -9/Materials | Identified exit to Mines 2035 | -9/Materials | Discovered new exit (range 16) 2095 | -9/Materials | Repaired Lgt. Armor Plating 2128 | -9/Materials | Repaired Hvy. Assault Rifle 2402 | -9/Materials | Entered another Materials area 2402 | -8/Materials | Evolved 2 slots: Utility x2 2473 | -8/Materials | Identified exit to Garrison 2473 | -8/Materials | Entered Garrison 2565 | -8/Garrison | Triggered checkpoint 2711 | -8/Garrison | Triggered checkpoint 2987 | -8/Garrison | Triggered checkpoint 3058 | -8/Garrison | Discovered new exit (range 10) 3097 | -8/Garrison | Triggered checkpoint 3243 | -8/Garrison | Triggered checkpoint 3315 | -8/Garrison | Discovered new exit (range 5) 3525 | -8/Garrison | Triggered checkpoint 3691 | -8/Garrison | Discovered new exit (range 13) 4078 | -8/Garrison | Discovered new exit (range 9) 4125 | -8/Garrison | Triggered checkpoint 4179 | -8/Garrison | Discovered new exit (range 64) 4179 | -8/Garrison | Discovered new exit (range 31) 4179 | -8/Garrison | Discovered new exit (range 25) 4179 | -8/Garrison | Discovered new exit (range 54) 4421 | -8/Garrison | Installed Relay Interface Framework 4493 | -8/Garrison | Garrison Relay disabled 4717 | -8/Garrison | Expanded RIF knowledge: Watcher Feeds 4762 | -8/Garrison | Garrison Relay disabled 4837 | -8/Garrison | Triggered checkpoint 4911 | -8/Garrison | Garrison Relay disabled 5012 | -8/Garrison | Garrison Relay disabled 5111 | -8/Garrison | Entered Materials 5151 | -8/Materials | Identified exit to Garrison 5151 | -8/Materials | Entered Garrison 5161 | -8/Garrison | Triggered checkpoint 5210 | -8/Garrison | Build established: Bothacker-Mutant 5219 | -8/Garrison | Triggered checkpoint 5237 | -8/Garrison | Core integrity fell below 50% 5305 | -8/Garrison | Core integrity fell below 20% 5321 | -8/Garrison | Destroyed by H-55 Commando with Assault Rifle Last Messages --------------- 05291_ Acquired 2 matter. 05292_ Jacked H-55 Commando... >>go_dormant Shutting down primary systems. 05294_ Commando 3a destroyed. 05295_ Sneak attack on H-55 Commando. 05295_ H-55 Commando springs to life. 05295_ Penetrated by Slug. 05295_ VSS Leg destroyed. 05301_ Assault Cannon destroyed. 05304_ Penetrated by Slug. 05306_ Cld. Ion Engine destroyed. 05311_ Imp. Aluminum Leg destroyed. 05311_ VSS Leg destroyed. 05312_ Penetrated by Slug. 05312_ Blade Saw destroyed. 05314_ Gauss Rifle destroyed. 05315_ Penetrated by Slug. 05318_ Core Shielding destroyed. 05321_ Penetrated by Slug. Map ----- +----------------------------------------------------+ | ????????????????????????????????# #?????????????? | | ????????????????????????????????# #?????????????? | | ????????????????????????????????# #?????????????? | | ????????????????????????##"""""## #?????????????? | | ????????????????????????# #?????????????? | | ????????????????????????# #?????????????? | | ????????????????????????### ### #?????????????? | | ?????????????????????????#""""??# #?????????????? | | ?????????????????????????####???# #?????????????? | | ????????????????????????????????# #?????????????? | | ????????????????????????????????# #?????????????? | | ????????????????????????????????# #?????????????? | | ????????????????????????????????# #?????????????? | | ????????????????????????????????# #?????????????? | | ??????????????????????########### ############### | | ??????????????????????# | | ??????????????????????# | | ??????????????????????# ^*% | | ??????????????????????# ###+############# #### | | ??????????????????????# #?#%#???????????# #??? | | ??????????????????????# h%###*#???????????#####??? | | ?????????????????????## |#" #??????????????????? | | ?????????????????????# =%/#??????????????????? | | ????????????????####### l#####??????????????????? | | ????????????????# ##= #??????????????????????? | | ?????????## ##### # [ @#??????????????????????? | | ?????? ^ %= ####???????????????????? | | ?????? ==!= #?????????????? | | ?????? * [ #?????????????? | | ???????# # ## %% # ##########?????????????? | | ???????????# ???# #??????????????????????? | | ??????????????? ?????????????????????? | | ????????????? [ #????????????????????? | | ???????????? %=#????????????????????? | | ??????????? * #????????????????????? | | ??????????## ## ## ###????????????????????? | | ???????????# ?# ?# #??????????????????????? | | ??????????? ?? ? #??????????????????????? | | ?????????? ??? ? #??????????????????????? | | ??????????????? ? #??????????????????????? | | ???????????????## ?? ##??????????????????????? | | ????????????????? ?? ????????????????????????? | | ???????????????????##????????????????????????????? | | ?????????????????????????????????????????????????? | | ?????????????????????????????????????????????????? | | ?????????????????????????????????????????????????? | | ?????????????????????????????????????????????????? | | ?????????????????????????????????????????????????? | | ?????????????????????????????????????????????????? | | ?????????????????????????????????????????????????? | +----------------------------------------------------+ Best States ------------- Heat Dissipation 73 Energy Generation 14 Energy Capacity 280 Matter Stores 300 Matter Capacity 350 Sight Range 16 Robot Scan Range 14 Terrain Scan Density 10 ECM Strength 1 Armor Coverage 450 Resistance: KI 20 Core Shielding 20 Evasion (%) 57 Recoil Reduction 3 Relay Coupler Types 2 Relay Coupler Value 32 Item Schematics ----------------- VSS Leg | -8/Materials | Scanalyzed Robot Schematics ------------------ None Fabricated ------------ Nothing Repaired ---------- Hvy. Assault Rifle | 55% | -9/Materials Lgt. Armor Plating | 1% | -9/Materials Hvy. Assault Rifle | 38% | -9/Materials Alien Tech Used ----------------- None Achievements -------------- Assimilation Complete Challenges ------------ None Game ------ Seed SingularityAuthchipCharge Manual? 0 Play Time 00:41:18 Cumulative 77.9 hours Start 2025.07.01 @ 20:09:20 End 2025.07.01 @ 20:47:20 Sessions 1 Manual Loads 0 Difficulty Rogue Special Mode None Game No. 93 Rogue 93 Adventurer 0 Explorer 0 Win Type - Total 1 Types 0/0/1/0/0/0/0/0/0/0 Lore% 53 Gallery% 52 Achievement% 45 Wizard Run 0 Options --------- Layout 1 ASCII 0 Keyboard 0 Movement Numpad Keybinds 0 Fullscreen 1 Font 24/Smallcaps Map View 50x35 Zoom Use 0% Tactical HUD 1 Map Filters NONE Filters NONE Steam 1 RUN: 0f86365d-3419-4603-a2f1-87987e2e558a